bitfinex/quotes_ETHUSD_20240910
["timestamp","ask_amount","ask_price","bid_price","bid_amount"]
[1725976382703,0.88682657,2340.2,2340.0,0.4226732]
[1725976383028,0.88682657,2340.2,2340.1,7.75426008]
[1725976383194,0.88682657,2340.2,2340.1,7.4676]
[1725976383397,0.88682657,2340.2,2340.1,7.55304853]
[1725976383840,1.3301414,2340.3,2340.2,1.87505811]
[1725976384062,4.3527039,2341.4,2340.8,2.0]
[1725976384200,4.3532247,2341.4,2341.1,4.4676]
[1725976384399,0.0236096,2341.8,2341.5,2.0]
[1725976384634,0.0236096,2341.8,2341.7,3.28666008]
[1725976384833,0.0236096,2341.8,2341.7,6.28666008]
[1725976385033,0.0236096,2341.8,2341.7,6.37205042]
[1725976385295,0.0236096,2341.8,2341.7,7.20071643]
[1725976386222,0.0236096,2341.8,2341.7,3.91405635]
[1725976386406,0.0236096,2341.8,2341.7,0.08539034]
[1725976386611,0.0236096,2341.8,2341.6,3.08539442]
[1725976386812,0.0236096,2341.8,2341.7,3.0]
[1725976387116,0.0236096,2341.8,2341.6,0.08539442]
[1725976387318,0.0236096,2341.8,2341.4,3.0]
[1725976387519,0.0236096,2341.8,2341.5,0.0853989]
[1725976389767,0.0236096,2341.8,2341.4,3.08539933]
[1725976389945,0.0236096,2341.8,2341.5,0.08540835]
[1725976391073,0.0236096,2341.8,2341.3,0.08539796]
[1725976391269,0.0236096,2341.8,2341.3,0.58539796]
[1725976391413,0.0236096,2341.8,2341.3,3.58539796]
[1725976392555,0.0236096,2341.8,2341.3,3.08539796]
[1725976392729,0.0236096,2341.8,2341.4,3.0]
[1725976392929,0.0236096,2341.8,2341.3,0.08540359]
[1725976393136,2.4613,2341.7,2341.0,7.48]
[1725976393335,0.24849096,2341.6,2340.7,7.56542701]
[1725976393650,0.24849096,2341.6,2340.8,0.08542623]
[1725976394319,2.4613,2341.5,2340.7,7.48]
[1725976398373,2.4613,2341.5,2340.8,0.08544085]
[1725976401225,2.4613,2341.5,2340.8,3.08544085]
[1725976403118,2.4483096,2341.8,2340.9,2.4242]
[1725976403349,2.4483096,2341.8,2341.0,0.63637765]
[1725976403562,2.4483096,2341.8,2341.0,3.08541356]
[1725976405431,2.4483096,2341.8,2341.1,0.08542303]
[1725976406471,2.4483096,2341.8,2340.9,0.08541547]
[1725976406643,2.4483096,2341.8,2341.0,2.4968]
[1725976406962,2.4483096,2341.8,2341.1,0.08541241]
[1725976407175,2.4483096,2341.8,2341.1,3.08541241]
[1725976408745,2.4483096,2341.8,2341.1,3.0854122]
[1725976409094,0.24483096,2341.7,2341.1,0.0854122]
[1725976409379,2.4109,2341.6,2341.0,0.0854126]
[1725976409800,2.4109,2341.6,2340.8,3.0]
[1725976409949,2.4109,2341.6,2340.8,3.08542167]
[1725976409950,0.2655731,2341.5,2340.8,3.08542167]
[1725976410385,2.4109,2341.6,2340.8,3.08542167]
[1725976412143,2.4109,2341.6,2340.7,7.48]
[1725976412501,2.327,2341.4,2340.7,7.48]
[1725976414506,2.4836,2341.2,2340.7,7.48]
[1725976414658,2.4836,2341.2,2340.3,7.48]
[1725976414848,2.4836,2341.0,2340.3,7.56544775]
[1725976416282,2.4836,2341.0,2340.4,3.0]
[1725976416584,2.4836,2341.0,2340.5,0.08543489]
[1725976417495,2.4468,2341.4,2340.5,2.08543489]
[1725976417679,2.4468,2341.4,2340.6,0.50854349]
[1725976417851,2.4468,2341.4,2340.7,0.08542667]
[1725976419196,2.4468,2341.4,2340.7,2.50702667]
[1725976419354,0.88965936,2341.7,2340.7,2.50702667]
[1725976419355,3.33195936,2341.7,2340.8,3.08541781]
[1725976419556,3.33195936,2341.7,2340.8,3.68697483]
[1725976419755,2.4245,2341.6,2340.8,3.68697483]
[1725976419992,2.4245,2341.6,2340.8,0.68697483]
[1725976420294,2.4245,2341.4,2340.6,7.98854349]
[1725976420612,2.4245,2341.4,2340.7,0.08543009]
[1725976420750,3.31415936,2341.4,2340.7,0.08543009]
[1725976420950,3.10044818,2341.4,2340.7,0.08543009]
[1725976421271,3.99010754,2341.4,2340.7,0.08543009]
[1725976421474,3.10044818,2341.4,2340.7,0.08543009]
[1725976421796,3.99010754,2341.4,2340.7,0.08543009]
[1725976422189,3.99010754,2341.4,2340.6,7.98854349]
[1725976422516,3.31415936,2341.4,2340.6,7.98854349]
[1725976422827,3.31415936,2341.4,2340.7,0.0854314]
[1725976422985,2.2814,2341.3,2340.6,7.56543143]
[1725976423181,0.31710594,2341.2,2340.6,7.48]
[1725976423382,2.2814,2341.3,2340.4,3.0]
[1725976423583,2.2814,2341.3,2340.5,1.048]
[1725976423584,3.17105936,2341.3,2340.5,1.048]
[1725976423833,0.88965936,2341.2,2340.5,1.048]
[1725976424328,2.2929,2341.1,2340.4,3.0]
[1725976424653,3.18255936,2341.1,2340.3,7.48]
[1725976424807,2.2929,2340.8,2340.3,7.48]
[1725976425001,0.31825594,2340.7,2340.3,7.48]
[1725976425207,0.31825594,2340.7,2339.9,7.5036096]
[1725976425450,0.31825594,2340.7,2340.0,0.08545639]
[1725976426109,2.3797,2340.6,2340.0,0.08545796]
[1725976427044,2.3797,2340.6,2340.0,3.08545796]
[1725976427729,2.73846153,2340.6,2340.0,3.0]
[1725976428108,2.73846153,2340.6,2339.9,0.0236096]
[1725976428307,0.88965936,2340.5,2339.9,0.0236096]
[1725976428556,2.71939677,2340.4,2339.9,0.0236096]
[1725976429049,2.4611,2340.3,2339.9,0.0236096]
[1725976429668,2.4611,2340.1,2339.9,0.0236096]
[1725976430159,5.4611,2340.1,2339.9,0.0236096]
[1725976430731,2.4611,2340.1,2339.9,0.0236096]
[1725976431369,2.70721,2340.1,2339.9,0.0236096]
[1725976432876,2.4611,2340.1,2339.9,0.0236096]
[1725976433428,2.3092,2340.4,2339.9,0.0236096]
[1725976435571,4.80177336,2340.7,2339.9,0.0236096]
[1725976435880,3.912114,2340.7,2339.9,0.0236096]
[1725976436061,3.912114,2340.7,2339.9,0.35801756]
[1725976436234,2.3354,2340.7,2339.9,3.35801756]
[1725976436938,0.88965936,2341.1,2340.0,2.3919]
[1725976437225,0.88965936,2341.1,2340.1,0.08544352]
[1725976437569,0.88965936,2341.5,2340.6,2.3919]
[1725976437714,1.33454679,2341.7,2341.1,2.264]
[1725976437715,0.88965936,2341.6,2341.1,2.264]
[1725976437917,4.17776928,2341.8,2341.2,0.51180819]
[1725976437918,0.0236096,2341.8,2341.2,0.51180819]
[1725976438116,0.0236096,2341.8,2341.3,2.08540604]
[1725976438317,0.0236096,2341.8,2341.6,4.264]
[1725976438519,0.0236096,2341.8,2341.7,0.08538409]
[1725976438815,0.0236096,2341.8,2341.7,3.08538409]
[1725976442335,0.0236096,2341.8,2341.7,3.0]
[1725976442643,0.0236096,2341.8,2341.7,3.08539076]
[1725976442844,0.0236096,2341.8,2341.7,3.59392984]
[1725976443043,0.0236096,2341.8,2341.7,3.50853908]
[1725976443449,0.0236096,2341.8,2341.7,3.0]
[1725976443953,0.0236096,2341.8,2341.5,0.08539914]
[1725976446063,0.0236096,2341.8,2341.5,0.08539561]
[1725976447872,0.0236096,2341.8,2341.6,2.0]
[1725976448021,0.0236096,2341.8,2341.7,0.08538665]
[1725976449756,0.0236096,2341.8,2341.5,0.08539915]
[1725976450530,0.0236096,2341.8,2341.4,0.25972142]
[1725976451769,0.0236096,2341.8,2341.1,3.0]
[1725976452966,0.0236096,2341.8,2341.2,0.0854078]
[1725976453941,0.0236096,2341.8,2341.1,0.08541506]
[1725976454140,0.0236096,2341.8,2341.3,2.0]
[1725976454353,0.0236096,2341.8,2341.4,0.63238701]
[1725976454825,0.0236096,2341.8,2341.2,0.08540864]
[1725976455540,0.0236096,2341.8,2341.1,0.08541527]
[1725976456080,2.3878,2341.7,2340.9,0.08541915]
[1725976456228,2.3878,2341.7,2340.6,0.08542653]
[1725976456229,0.24114096,2341.6,2340.6,0.08542653]
[1725976456429,2.3878,2341.7,2340.6,0.08542653]
[1725976457071,2.3878,2341.5,2340.2,4.3924]
[1725976457273,2.3878,2341.5,2340.3,0.08543336]
[1725976457631,2.3878,2341.5,2340.3,0.70833468]
[1725976457828,2.3878,2341.5,2340.3,1.26810873]
[1725976458028,2.2653,2341.3,2340.4,0.56605087]
[1725976458356,2.2653,2341.3,2340.5,0.08543924]
[1725976458871,2.2653,2341.3,2340.5,2.08543924]
[1725976461931,2.2653,2341.3,2340.5,0.08543924]
[1725976462860,2.2653,2341.3,2340.3,7.5654377]
[1725976463652,2.2653,2341.3,2340.4,0.08544227]
[1725976463858,2.65453,2341.2,2340.4,0.0854414]
[1725976464185,2.428,2341.2,2340.4,0.0854414]
[1725976464484,2.428,2341.2,2340.3,7.48]
[1725976464781,2.428,2341.2,2340.4,0.08544143]
[1725976465083,0.2428,2341.1,2340.4,0.08544143]
[1725976465254,3.2428,2341.1,2340.4,0.08544143]
[1725976465656,2.428,2341.2,2340.4,0.08544143]
[1725976467043,2.428,2341.2,2340.5,2.3765]
[1725976467315,2.428,2341.2,2340.6,0.08543504]
[1725976469547,2.428,2341.2,2340.6,2.08543504]
[1725976469826,2.498,2341.6,2340.6,2.08543504]
[1725976470009,2.498,2341.6,2340.7,0.4461935]
[1725976470010,3.10186382,2341.6,2340.7,0.4461935]
[1725976470327,3.10186382,2341.6,2340.8,0.08542209]
[1725976475443,2.498,2341.6,2340.8,0.08542209]
[1725976475860,2.498,2341.6,2340.9,5.28384869]
[1725976476063,2.498,2341.6,2341.0,0.08541484]
[1725976476268,0.0236096,2341.8,2341.0,0.08541484]
[1725976477583,0.91164859,2341.8,2341.0,0.08541484]
[1725976477733,0.91164859,2341.8,2341.0,0.86669119]
[1725976478247,4.19549728,2341.8,2341.0,0.86669119]
[1725976478600,0.88803899,2341.7,2341.0,0.08541585]
[1725976478880,0.91164859,2341.8,2341.0,0.08541585]
[1725976479227,0.88803899,2341.7,2341.0,0.08541585]
[1725976479434,0.0236096,2341.8,2341.0,0.59395744]
[1725976479435,0.91164859,2341.8,2341.0,0.59395744]
[1725976479742,0.91164859,2341.8,2340.7,4.36842663]
[1725976479743,0.88803899,2341.6,2340.7,1.7229615]
[1725976479957,0.88803899,2341.5,2340.7,1.08457794]
[1725976480174,0.88803899,2341.5,2340.8,1.30114779]
[1725976480371,2.2605,2341.4,2340.7,0.63838444]
[1725976480532,3.14853899,2341.4,2340.8,0.08542944]
[1725976480737,4.05062494,2341.4,2340.8,0.08542944]
[1725976481043,0.88803899,2341.3,2340.8,0.08542944]
[1725976481265,4.05062494,2341.4,2340.8,0.08542944]
[1725976481645,0.53826834,2341.3,2340.7,0.63838444]
[1725976481847,1.42630733,2341.3,2340.7,0.63838444]
[1725976482392,0.88803899,2341.2,2340.7,0.63838444]
[1725976482542,0.88803899,2341.1,2340.7,0.63838444]
[1725976482748,1.16387557,2341.1,2340.7,0.63838444]
[1725976483056,3.14853899,2341.0,2340.7,0.63838444]
[1725976483432,0.88803899,2340.9,2340.7,0.63838444]
[1725976483780,0.88803899,2341.0,2340.7,0.63838444]
[1725976483962,0.88803899,2341.1,2340.7,1.03060775]
[1725976484136,0.88803899,2341.1,2340.7,0.63838444]
[1725976484657,0.88803899,2341.0,2340.7,0.63838444]
[1725976484861,0.88803899,2341.1,2340.7,0.63838444]
[1725976485383,0.88803899,2341.1,2340.8,0.08543905]
[1725976485676,0.88803899,2341.2,2340.8,0.08543905]
[1725976485860,0.88803899,2341.2,2340.8,0.4010614]
[1725976487053,0.88803899,2341.3,2340.8,0.4010614]
[1725976487243,0.88803899,2341.4,2340.8,2.4010614]
[1725976487575,0.88803899,2341.6,2341.0,2.368]
[1725976487738,0.88803899,2341.6,2341.1,0.08541217]
[1725976487946,0.88803899,2341.6,2341.1,0.7223712]
[1725976488783,0.88803899,2341.6,2341.1,0.08541217]
[1725976489683,0.88803899,2341.5,2341.1,0.08541217]
[1725976492381,0.88803899,2341.6,2341.1,0.08541217]
[1725976492573,0.88803899,2341.5,2341.1,0.08541217]
[1725976492781,0.88803899,2341.5,2341.1,0.39398633]
[1725976492975,0.88803899,2341.6,2341.1,0.39398633]
[1725976493704,0.88803899,2341.5,2341.1,0.39398633]
[1725976495880,0.88803899,2341.4,2341.1,0.39398633]
[1725976496213,0.88803899,2341.4,2341.1,0.08541217]
[1725976498119,0.88803899,2341.3,2341.1,0.08541217]
[1725976499273,0.88803899,2341.4,2341.1,0.08541217]
[1725976499974,0.88803899,2341.4,2341.0,0.08541928]
[1725976500175,0.88803899,2341.2,2341.0,0.08541928]
[1725976500499,1.33205849,2341.3,2340.9,0.08542233]
[1725976500500,0.88803899,2341.3,2340.9,0.08542233]
[1725976500706,0.88803899,2341.3,2340.8,0.08543107]
[1725976500707,0.88803899,2341.2,2340.8,0.08543107]
[1725976500877,0.88803899,2341.2,2340.8,2.08543107]
[1725976501075,0.88803899,2341.4,2340.9,2.452]
[1725976501282,0.88803899,2341.4,2341.0,0.08541543]
[1725976501826,0.88803899,2341.5,2341.2,2.4338]
[1725976501980,0.88803899,2341.5,2341.3,0.52878774]
[1725976502182,0.88803899,2341.6,2341.3,0.52878774]
[1725976502451,0.88803899,2341.5,2341.3,0.52878774]
[1725976502721,0.88803899,2341.5,2341.4,0.29625877]
[1725976503801,0.88803899,2341.6,2341.4,0.29625877]
[1725976505000,0.88803899,2341.5,2341.4,0.29625877]
[1725976505207,0.88803899,2341.6,2341.3,0.52878774]
[1725976505795,0.88803899,2341.7,2341.3,0.52878774]
[1725976505993,0.88803899,2341.6,2341.4,0.29625877]
[1725976506220,0.88803899,2341.6,2341.5,0.08540571]
[1725976506516,0.88803899,2341.7,2341.5,0.08540571]
[1725976506701,1.35566809,2341.8,2341.5,0.08540571]
[1725976506702,0.91164859,2341.8,2341.5,0.08540571]
[1725976506923,0.91164859,2341.8,2340.8,2.3247]
[1725976506924,4.09227798,2341.6,2340.8,2.3247]
[1725976507093,0.8944666,2341.4,2340.9,0.08542623]
[1725976507451,0.8944666,2341.4,2340.9,0.52643885]
[1725976507588,0.8944666,2341.3,2340.9,0.52643885]
[1725976508002,0.8944666,2341.2,2340.9,0.44101262]
[1725976508291,0.8944666,2341.2,2340.9,0.08542531]
[1725976508491,0.8944666,2341.2,2340.8,3.0]
[1725976508699,0.8944666,2341.1,2340.8,3.08542913]
[1725976508914,0.8944666,2341.1,2340.7,2.0]
[1725976508915,3.72389105,2341.1,2340.3,4.3766]
[1725976509125,0.8944666,2340.9,2340.3,4.3766]
[1725976509520,0.8944666,2340.9,2340.4,0.08544161]
[1725976509941,2.2361665,2340.9,2340.4,0.08544161]
[1725976510089,0.8944666,2340.8,2340.4,0.53164386]
[1725976510441,0.8944666,2340.9,2340.4,0.53164386]
[1725976510600,0.8944666,2340.9,2340.5,0.49082439]
[1725976511132,0.8944666,2341.0,2340.5,0.49082439]
[1725976511343,0.8944666,2340.9,2340.6,0.08543968]
[1725976511627,1.3416999,2341.0,2340.6,0.08543968]
[1725976511628,0.8944666,2341.0,2340.6,0.40224682]
[1725976512248,0.8944666,2341.0,2340.7,0.08543958]
[1725976512394,0.8944666,2341.0,2340.6,2.40224682]
[1725976512624,0.8944666,2341.1,2340.8,0.08543526]
[1725976512829,0.8944666,2340.9,2340.6,2.40224682]
[1725976513055,0.8944666,2340.9,2340.4,3.0]
[1725976513268,0.8944666,2340.8,2340.3,7.48]
[1725976513481,1.20752991,2340.8,2340.1,2.3237]
[1725976513779,0.8944666,2340.3,2339.9,7.5036096]
[1725976513928,6.64818783,2340.1,2339.9,0.0236096]
[1725976514324,3.3631666,2340.1,2339.9,0.0236096]
[1725976514929,0.8944666,2340.2,2339.9,0.0236096]
[1725976515139,0.8944666,2340.3,2339.9,0.0236096]
[1725976515635,0.8944666,2340.7,2340.0,2.3675]
[1725976515836,0.8944666,2340.6,2340.1,0.08545228]
[1725976516156,0.8944666,2340.7,2340.1,0.66161059]
[1725976516357,0.8944666,2340.8,2340.1,5.08545228]
[1725976516888,2.2361665,2340.9,2340.1,5.08545228]
[1725976517066,0.8944666,2340.8,2340.2,0.74529523]
[1725976517230,0.8944666,2340.9,2340.3,0.08544427]
[1725976517428,0.8944666,2340.9,2340.3,0.66851902]
[1725976517630,0.8944666,2340.8,2340.3,0.66851902]
[1725976518082,0.8944666,2340.9,2340.3,0.66851902]
[1725976520030,0.8944666,2341.0,2340.4,4.2727]
[1725976520187,0.8944666,2341.1,2340.5,3.57955635]
[1725976520384,3.2321666,2341.1,2340.5,3.4941219]
[1725976520566,3.2321666,2341.1,2340.6,0.86211667]
[1725976520773,0.8944666,2341.2,2340.6,0.86211667]
[1725976521153,0.8944666,2341.1,2340.6,0.86211667]
[1725976521355,0.8944666,2341.2,2340.6,0.86211667]
[1725976521553,0.8944666,2341.2,2340.7,0.43562386]
[1725976521952,0.8944666,2341.2,2340.8,0.08543455]
[1725976522449,0.8944666,2341.4,2340.9,2.4184]
[1725976522643,1.77607798,2341.6,2340.9,2.4184]
[1725976522644,0.8944666,2341.6,2341.0,2.33580005]
[1725976522846,1.3653095,2341.8,2341.1,1.32542001]
[1725976522847,0.8944666,2341.7,2341.1,1.32542001]
[1725976523077,0.9180762,2341.8,2341.2,0.08540589]
[1725976523287,0.8944666,2341.7,2341.2,0.46006849]
[1725976523488,0.8944666,2341.7,2341.3,0.08540596]
[1725976523668,0.9180762,2341.8,2341.3,0.08540596]
[1725976523884,0.8944666,2341.7,2341.3,0.56395482]
[1725976524087,1.3653095,2341.8,2341.4,4.4151]
[1725976524088,0.0236096,2341.8,2341.4,4.4151]
[1725976524291,0.0236096,2341.8,2341.5,0.58330318]
[1725976525208,0.0236096,2341.8,2341.5,0.0853977]
[1725976525500,0.0236096,2341.8,2341.4,0.08539706]
[1725976526502,0.0236096,2341.8,2341.5,2.2622]
[1725976526680,0.0236096,2341.8,2341.6,0.08539745]
[1725976527296,0.0236096,2341.8,2341.6,0.5201572]
[1725976527881,0.0236096,2341.8,2341.5,0.08539949]
[1725976528184,0.0236096,2341.8,2341.5,2.08539949]
[1725976529102,0.0236096,2341.8,2341.5,0.08539949]
[1725976529266,0.0236096,2341.8,2341.5,2.0]
[1725976529471,0.0236096,2341.8,2341.6,0.08539758]
[1725976529803,0.0236096,2341.8,2341.5,0.0854004]
[1725976529973,0.0236096,2341.8,2341.4,0.08540634]
[1725976530158,0.0236096,2341.8,2341.4,0.61074812]
[1725976530666,0.0236096,2341.8,2341.5,2.0]
[1725976530994,0.0236096,2341.8,2341.6,0.08539463]
[1725976531411,0.0236096,2341.8,2341.7,2.4536]
[1725976531622,0.0236096,2341.8,2341.7,3.0036]
[1725976531775,0.0236096,2341.8,2341.7,7.21692117]
[1725976531974,0.0236096,2341.8,2341.7,7.30230268]
[1725976533215,0.0236096,2341.8,2341.7,7.21692117]
[1725976533371,0.0236096,2341.8,2341.7,6.75230612]
[1725976535676,0.0236096,2341.8,2341.7,6.66692117]
[1725976535870,0.0236096,2341.8,2341.7,6.75231074]
[1725976537802,0.0236096,2341.8,2341.7,6.66692117]
[1725976538002,0.0236096,2341.8,2341.7,6.75231081]
[1725976539416,0.0236096,2341.8,2341.7,7.30231081]
[1725976540422,0.0236096,2341.8,2341.7,6.75231081]
[1725976543626,0.0236096,2341.8,2341.7,6.75231109]
[1725976546227,0.0236096,2342.3,2341.9,2.0]
[1725976546440,0.0236096,2342.3,2342.0,0.0853818]
[1725976547247,0.0236096,2342.3,2342.2,4.4993]
[1725976547449,0.0236096,2342.8,2342.7,2.0]
[1725976547633,0.0236096,2342.8,2342.7,8.54351712]
[1725976547799,0.0236096,2342.8,2342.7,12.39786883]
[1725976548443,0.0236096,2342.8,2342.7,12.94786883]
[1725976548800,0.0236096,2343.2,2343.1,2.0]
[1725976550746,0.0236096,2343.2,2343.1,5.08533554]
[1725976550952,0.0236096,2343.2,2343.1,5.99829081]
[1725976552165,0.0236096,2343.2,2343.1,8.41399081]
[1725976552463,0.0236096,2343.2,2343.1,8.96399081]
[1725976552658,0.0236096,2343.2,2343.1,2.99829081]
[1725976553951,0.0236096,2343.2,2343.1,5.99829081]
[1725976554725,0.0236096,2343.2,2343.1,6.54829081]
[1725976556250,0.0236096,2343.2,2343.1,5.99829081]
[1725976557066,0.0236096,2343.2,2343.1,6.54829081]
[1725976557423,0.0236096,2343.2,2343.1,8.99919081]
[1725976558108,0.0236096,2343.2,2343.1,5.91385527]
[1725976558309,0.0236096,2343.2,2343.1,5.44918505]
[1725976558705,0.0236096,2343.2,2343.1,5.36385527]
[1725976559329,0.0236096,2343.2,2343.1,2.99828564]
[1725976559524,0.0236096,2343.2,2343.1,5.99828564]
[1725976561873,0.0236096,2343.2,2343.1,5.91295527]
[1725976562523,0.0236096,2343.2,2343.1,3.0]
[1725976562854,0.0236096,2343.2,2343.0,0.0853408]
[1725976563061,0.0236096,2343.2,2342.5,9.48]
[1725976563270,0.0236096,2343.2,2342.8,5.27723815]
[1725976563420,0.0236096,2343.2,2342.9,0.08534617]
[1725976563615,0.0236096,2343.2,2343.1,2.0]
[1725976563809,0.0236096,2343.2,2343.1,2.08533687]
[1725976565121,0.0236096,2343.2,2342.8,2.0]
[1725976565321,0.0236096,2343.2,2342.9,0.32772382]
[1725976565828,2.3802096,2343.2,2342.9,0.32772382]
[1725976566157,2.3802096,2343.2,2342.9,0.08535218]
[1725976566466,2.3802096,2343.2,2342.8,2.0]
[1725976568518,2.3802096,2343.2,2342.7,0.08535785]
[1725976568718,2.3802096,2343.2,2342.6,3.0]
[1725976569154,2.3802096,2343.2,2342.3,7.48]
[1725976569387,0.23802096,2343.1,2342.4,0.08537163]
[1725976569769,2.4558,2343.0,2342.4,0.08537163]
[1725976570660,2.4558,2343.0,2342.3,7.48]
[1725976570995,0.0236096,2343.2,2342.3,7.48]
[1725976570996,2.4051,2342.8,2342.3,7.48]
[1725976571193,2.4051,2342.8,2342.3,7.56537856]
[1725976571761,2.4051,2342.8,2342.3,7.48]
[1725976573757,2.4051,2342.8,2341.9,12.48]
[1725976573957,2.4354,2342.6,2341.9,12.48]
[1725976574506,2.4354,2342.6,2342.0,0.08538191]
[1725976574655,2.4354,2342.6,2341.9,5.0]
[1725976574982,2.4354,2342.6,2341.8,3.0]
[1725976575186,2.4354,2342.6,2341.8,3.748]
[1725976575700,2.4354,2342.6,2341.9,0.08538886]
[1725976579773,2.4354,2342.6,2341.7,7.48]
[1725976580075,2.3754,2342.4,2341.7,7.48]
[1725976580320,2.3754,2342.4,2341.4,7.5036096]
[1725976581677,2.3754,2342.4,2341.5,3.0]
[1725976581989,2.3082,2342.2,2341.5,3.0]
[1725976585234,2.2982,2342.2,2341.5,3.0]
[1725976586236,2.2982,2342.2,2341.5,3.08540848]
[1725976586522,2.2982,2342.2,2341.5,3.0]
[1725976586726,2.2982,2342.2,2341.5,3.08540628]
[1725976586892,2.2982,2342.2,2341.6,1.05890159]
[1725976589892,2.2982,2342.2,2341.7,0.08540107]
[1725976590523,2.2982,2342.2,2341.6,3.05890159]
[1725976590524,2.2982,2342.2,2341.6,3.14429355]
[1725976591630,2.2982,2342.2,2341.6,3.14430205]
[1725976592143,2.2982,2342.2,2341.7,0.61443021]
[1725976594025,2.2982,2342.2,2341.6,1.05890159]
[1725976594223,2.2982,2342.2,2341.5,3.0]
[1725976594526,2.4543,2342.0,2341.4,7.5036096]
[1725976594857,9.6670466,2342.7,2341.4,7.5036096]
[1725976594858,2.4543,2341.8,2341.4,0.0236096]
[1725976596642,2.4543,2341.7,2341.4,0.0236096]
[1725976596836,0.49086,2341.6,2341.4,0.0236096]
[1725976597153,2.4543,2341.7,2341.4,0.0236096]
[1725976597349,2.4543,2341.6,2341.4,0.0236096]
[1725976597928,5.62372796,2341.5,2341.4,0.0236096]
[1725976598102,6.18610076,2341.5,2341.4,0.0236096]
[1725976598834,9.73610076,2341.5,2341.4,0.0236096]
[1725976602336,0.0572,2341.4,2340.9,0.0236096]
[1725976602537,3.33842796,2341.0,2340.9,0.0236096]
[1725976602735,6.33842796,2341.0,2340.9,0.0236096]
[1725976603060,6.88842796,2341.0,2340.9,0.0236096]
[1725976604853,3.6135999,2341.6,2340.9,0.0236096]
[1725976605034,2.2719,2341.6,2340.9,1.35317093]
[1725976605241,2.2719,2341.6,2340.9,0.0236096]
[1725976605553,2.3559,2341.4,2340.9,0.0236096]
[1725976605720,5.63712796,2341.0,2340.9,0.0236096]
[1725976606552,5.63712796,2341.0,2340.4,0.0236096]
[1725976606553,4.84547858,2340.9,2340.4,0.0236096]
[1725976606781,3.31482796,2340.5,2340.4,0.0236096]
[1725976606966,6.86482796,2340.5,2340.4,0.0236096]
[1725976607716,6.86482796,2340.5,2340.0,0.00214]
[1725976607717,2.2595,2340.4,2340.0,0.00214]
[1725976607881,5.54072796,2340.1,2340.0,0.00214]
[1725976608094,6.09072796,2340.1,2340.0,0.00214]
[1725976608256,9.09072796,2340.1,2340.0,0.00214]
[1725976610294,9.85911849,2340.1,2340.0,0.00214]
[1725976611052,14.70605707,2340.1,2340.0,0.00214]
[1725976611353,10.43273707,2340.1,2340.0,0.00214]
[1725976611554,9.85911849,2340.1,2340.0,0.00214]
[1725976612262,11.43001574,2340.1,2340.0,0.00214]
[1725976615759,16.27695432,2340.1,2340.0,0.00214]
[1725976616000,0.1187,2339.6,2339.5,0.0236096]
[1725976616296,8.44254849,2339.6,2339.5,0.0236096]
[1725976616496,14.11103334,2339.6,2339.5,0.0236096]
[1725976616665,12.73680334,2339.6,2339.5,0.0236096]
[1725976616998,8.46257334,2339.6,2339.5,0.0236096]
[1725976617210,8.46257334,2339.6,2339.5,0.0104217]
[1725976617211,10.82867334,2339.6,2339.5,0.0104217]
[1725976617506,6.77905485,2339.6,2339.5,0.0104217]
[1725976617687,6.22905485,2339.6,2339.5,0.0104217]
[1725976618995,6.77905485,2339.6,2339.5,0.0104217]
[1725976622675,10.82867334,2339.6,2339.5,0.0104217]
[1725976622971,4.27478,2339.3,2339.2,0.0249119]
[1725976623181,4.27569,2338.8,2338.7,0.0249119]
[1725976623477,8.87530849,2338.8,2338.7,0.0249119]
[1725976623852,8.87530849,2338.8,2337.8,0.0249119]
[1725976623853,11.87530849,2338.8,2337.8,0.0249119]
[1725976624064,3.55,2338.7,2337.8,0.0249119]
[1725976624486,2.3078,2338.6,2337.8,0.0249119]
[1725976624709,0.55,2338.5,2337.8,0.0249119]
[1725976625217,2.2702,2339.3,2337.8,0.0249119]
[1725976625378,2.2702,2339.3,2338.2,2.4574]
[1725976625721,2.2702,2339.3,2338.3,0.27314309]
[1725976626859,2.2702,2339.3,2338.3,0.35867366]
[1725976627066,2.2702,2339.3,2338.3,0.27314309]
[1725976628159,5.2702,2339.3,2338.3,0.27314309]
[1725976628359,1.576714,2339.4,2338.4,2.3206]
[1725976628759,1.576714,2339.4,2338.5,0.08552052]
[1725976630126,6.19995107,2339.4,2338.4,2.3206]
[1725976630277,10.19351511,2339.3,2338.3,0.0249119]
[1725976630474,4.04961849,2339.1,2338.3,0.0249119]
[1725976630704,3.0,2339.0,2338.3,0.0249119]
[1725976630884,2.2986,2338.8,2338.3,0.0249119]
[1725976631090,5.2986,2338.8,2338.3,0.0249119]
[1725976631814,0.55,2338.7,2338.3,0.0249119]
[1725976631998,3.55,2338.7,2338.3,0.0249119]
[1725976634607,7.82588,2338.7,2338.3,0.0249119]
[1725976634935,1.41740985,2338.6,2338.3,0.0249119]
[1725976635108,2.2889,2338.4,2338.3,0.0249119]
[1725976635306,5.2889,2338.4,2338.3,0.0249119]
[1725976635506,2.8389,2338.4,2338.3,0.0249119]
[1725976635708,5.8389,2338.4,2338.3,0.0249119]
[1725976635894,6.86453098,2338.4,2338.3,0.0249119]
[1725976636093,4.57563098,2338.4,2338.3,0.0249119]
[1725976636310,3.0,2338.4,2338.3,0.0249119]
[1725976636758,3.0,2338.7,2338.3,0.0249119]
[1725976636930,5.3874,2338.8,2338.3,0.0249119]
[1725976637253,0.60923619,2338.7,2338.3,0.0249119]
[1725976637457,3.60923619,2338.7,2338.3,0.0249119]
[1725976637959,0.55,2338.6,2338.3,0.0249119]
[1725976638800,3.60923619,2338.7,2338.3,0.0249119]
[1725976639444,0.60923619,2338.7,2338.3,0.0249119]
[1725976639599,0.70496185,2338.9,2338.3,0.0249119]
[1725976639798,2.3425,2339.1,2338.3,2.3805119]
[1725976641050,5.3425,2339.1,2338.3,0.0249119]
[1725976641399,9.61766,2339.1,2338.3,0.0249119]
[1725976641600,10.73726849,2338.8,2338.3,0.0249119]
[1725976641855,4.07372685,2338.7,2338.3,0.0249119]
[1725976642141,8.89968685,2338.7,2338.3,0.0249119]
[1725976642876,4.62372685,2338.7,2338.3,0.0249119]
[1725976642999,8.32587849,2338.5,2338.3,0.0249119]
[1725976643201,5.8481,2338.4,2338.3,0.0249119]
[1725976643445,7.48053111,2338.4,2338.3,0.0249119]
[1725976643648,5.8481,2338.4,2338.3,0.0249119]
[1725976643952,10.12452,2338.4,2338.3,0.0249119]
[1725976644276,14.40094,2338.4,2338.3,0.0249119]
[1725976644481,4.27734,2337.9,2337.8,0.0249119]
[1725976644622,3.784145,2337.9,2337.8,0.0249119]
[1725976644824,6.784145,2337.9,2337.8,0.0249119]